[Event "*** Titled Tuesday Blitz"]
[Site "Chess.com"]
[Date "2018.11.06"]
[Round "2"]
[White "Makalexa"]
[Black "Keures"]
[Result "1-0"]
[WhiteElo "2138"]
[BlackElo "2209"]
[TimeControl "180+2"]
[EndTime "13:21:17 PST"]
[Termination "Makalexa won by checkmate"]

1. e4 {[%clk 0:03:01.9]} 1... e6 {[%clk 0:03:01.1]} 2. d4 {[%clk 0:03:02]} 2...
d5 {[%clk 0:03:03]} 3. Nc3 {[%clk 0:03:02.9]} 3... Bb4 {[%clk 0:03:01.3]} 4. e5
{[%clk 0:03:03.6]} 4... b6 {[%clk 0:03:01]} 5. a3 {[%clk 0:03:02.6]} 5... Bf8
{[%clk 0:02:59.8]} 6. Nf3 {[%clk 0:02:59.8]} 6... Qd7 {[%clk 0:02:58.3]} 7. g3
{[%clk 0:02:52]} 7... Ne7 {[%clk 0:02:35.5]} 8. Nh4 {[%clk 0:02:50]} 8... c5
{[%clk 0:02:30.6]} 9. Ne2 {[%clk 0:02:49.4]} 9... Ba6 {[%clk 0:02:28.6]} 10. c3
{[%clk 0:02:46.5]} 10... Nbc6 {[%clk 0:02:24]} 11. Be3 {[%clk 0:02:40.5]} 11...
Na5 {[%clk 0:02:16.1]} 12. Bg2 {[%clk 0:02:32.6]} 12... h6 {[%clk 0:02:09.8]}
13. b4 {[%clk 0:02:24.4]} 13... cxd4 {[%clk 0:01:50.4]} 14. cxd4 {[%clk
0:01:50.1]} 14... Nc4 {[%clk 0:01:41.7]} 15. O-O {[%clk 0:01:51.1]} 15... Rc8
{[%clk 0:01:18.1]} 16. a4 {[%clk 0:01:50.4]} 16... Nxe3 {[%clk 0:01:16.2]} 17.
fxe3 {[%clk 0:01:50.6]} 17... Bc4 {[%clk 0:01:13.5]} 18. Nf4 {[%clk 0:01:40.1]}
18... Bxf1 {[%clk 0:01:08.6]} 19. Bxf1 {[%clk 0:01:36.7]} 19... g6 {[%clk
0:01:08.5]} 20. Bb5 {[%clk 0:01:35.4]} 20... Nc6 {[%clk 0:01:02.5]} 21. Rc1
{[%clk 0:01:33.9]} 21... Kd8 {[%clk 0:01:02.1]} 22. Qc2 {[%clk 0:01:18.3]} 22...
Nxb4 {[%clk 0:00:54.5]} 23. Qb1 {[%clk 0:00:58.3]} 23... Rxc1+ {[%clk
0:00:54.1]} 24. Qxc1 {[%clk 0:00:59.3]} 24... Qe7 {[%clk 0:00:54.9]} 25. Nhxg6
{[%clk 0:00:58.2]} 25... fxg6 {[%clk 0:00:46.3]} 26. Nxg6 {[%clk 0:01:00.1]}
26... Qh7 {[%clk 0:00:47.4]} 27. Nxh8 {[%clk 0:00:52.5]} 27... Qxh8 {[%clk
0:00:49.3]} 28. a5 {[%clk 0:00:43.6]} 28... Qg7 {[%clk 0:00:44.1]} 29. axb6
{[%clk 0:00:44]} 29... axb6 {[%clk 0:00:43.9]} 30. Qa3 {[%clk 0:00:44.2]} 30...
Qb7 {[%clk 0:00:37]} 31. Qc1 {[%clk 0:00:36.8]} 31... Qa7 {[%clk 0:00:31.8]} 32.
Qf1 {[%clk 0:00:36.4]} 32... Bg7 {[%clk 0:00:28.4]} 33. Kg2 {[%clk 0:00:28.1]}
33... Qa2+ {[%clk 0:00:22.9]} 34. Kh3 {[%clk 0:00:27]} 34... Qa7 {[%clk
0:00:21]} 35. Qf3 {[%clk 0:00:26]} 35... Qe7 {[%clk 0:00:20.9]} 36. Qh5 {[%clk
0:00:25.6]} 36... Nc2 {[%clk 0:00:21.1]} 37. Qg6 {[%clk 0:00:25.2]} 37... Nxe3
{[%clk 0:00:21.2]} 38. Qh7 {[%clk 0:00:24.6]} 38... Nf5 {[%clk 0:00:22.3]} 39.
Qg8+ {[%clk 0:00:24.6]} 39... Kc7 {[%clk 0:00:22.3]} 40. Qa8 {[%clk 0:00:21.2]}
40... Nxd4 {[%clk 0:00:21.1]} 41. Qa7+ {[%clk 0:00:20.2]} 41... Kd8 {[%clk
0:00:22.1]} 42. Qb8# {[%clk 0:00:20.2]} 1-0

[Event "*** Titled Tuesday Blitz"]
[Site "Chess.com"]
[Date "2018.11.06"]
[Round "2"]
[White "kharov2001"]
[Black "DonPreuss"]
[Result "1-0"]
[WhiteElo "2229"]
[BlackElo "2145"]
[TimeControl "180+2"]
[EndTime "13:21:19 PST"]
[Termination "kharov2001 won by resignation"]

1. e4 {[%clk 0:03:01.9]} 1... e5 {[%clk 0:03:00.7]} 2. Nf3 {[%clk 0:03:02.6]}
2... d5 {[%clk 0:03:01.8]} 3. d4 {[%clk 0:03:02.4]} 3... dxe4 {[%clk 0:03:02.5]}
4. Nxe5 {[%clk 0:03:03.8]} 4... Bd6 {[%clk 0:03:04.1]} 5. Bc4 {[%clk 0:03:04.8]}
5... Bxe5 {[%clk 0:03:05.3]} 6. Qh5 {[%clk 0:03:05.3]} 6... Qe7 {[%clk
0:03:06.8]} 7. Qxe5 {[%clk 0:03:01.6]} 7... Qxe5 {[%clk 0:03:07.3]} 8. dxe5
{[%clk 0:03:02.5]} 8... Nc6 {[%clk 0:03:08.2]} 9. Bf4 {[%clk 0:02:48.8]} 9...
Nge7 {[%clk 0:03:08.8]} 10. Bg3 {[%clk 0:02:27.7]} 10... Ng6 {[%clk 0:02:48.7]}
11. Bd5 {[%clk 0:02:27.9]} 11... Ncxe5 {[%clk 0:02:44.7]} 12. Bxe4 {[%clk
0:02:28.4]} 12... c6 {[%clk 0:02:42.7]} 13. O-O {[%clk 0:02:28.3]} 13... f5
{[%clk 0:02:35.2]} 14. f4 {[%clk 0:02:14.3]} 14... Nc4 {[%clk 0:02:20.3]} 15.
Bf3 {[%clk 0:01:53.4]} 15... Nxb2 {[%clk 0:02:16.5]} 16. Re1+ {[%clk 0:01:41.4]}
16... Kd8 {[%clk 0:02:14.4]} 17. Nc3 {[%clk 0:01:39.5]} 17... Kc7 {[%clk
0:02:12.4]} 18. Rab1 {[%clk 0:01:37.8]} 18... Nc4 {[%clk 0:02:12.5]} 19. Bh5
{[%clk 0:01:35.5]} 19... Bd7 {[%clk 0:02:08.6]} 20. Rb4 {[%clk 0:01:32]} 20...
Nb6 {[%clk 0:02:05]} 21. a4 {[%clk 0:01:17.5]} 21... Rhe8 {[%clk 0:02:01.9]} 22.
a5 {[%clk 0:01:15.7]} 22... Rxe1+ {[%clk 0:01:45.4]} 23. Bxe1 {[%clk 0:01:17.6]}
23... Nd5 {[%clk 0:01:45.7]} 24. Nxd5+ {[%clk 0:01:18.2]} 24... cxd5 {[%clk
0:01:47.6]} 25. g3 {[%clk 0:01:17.4]} 25... Re8 {[%clk 0:01:43.9]} 26. Bf2
{[%clk 0:01:17.1]} 26... Kb8 {[%clk 0:01:06.5]} 27. Bf3 {[%clk 0:01:04.7]} 27...
Bc6 {[%clk 0:01:06.9]} 28. Bd4 {[%clk 0:01:03.8]} 28... Re1+ {[%clk 0:00:59.2]}
29. Kf2 {[%clk 0:01:04.2]} 29... Rc1 {[%clk 0:00:55]} 30. c3 {[%clk 0:01:02.2]}
30... Rc2+ {[%clk 0:00:54.3]} 31. Kg1 {[%clk 0:01:01.1]} 31... a6 {[%clk
0:00:45.9]} 32. Bxg7 {[%clk 0:00:59.3]} 32... Kc8 {[%clk 0:00:46]} 33. Bd4
{[%clk 0:00:57.7]} 33... Kd7 {[%clk 0:00:46.5]} 34. Rb1 {[%clk 0:00:56.4]} 34...
Nf8 {[%clk 0:00:44]} 35. Re1 {[%clk 0:00:55.8]} 35... Ne6 {[%clk 0:00:44.8]} 36.
Be5 {[%clk 0:00:53.9]} 36... Ra2 {[%clk 0:00:44.2]} 37. g4 {[%clk 0:00:40.5]}
37... d4 {[%clk 0:00:25.5]} 38. Bxc6+ {[%clk 0:00:34]} 38... bxc6 {[%clk
0:00:24.7]} 39. gxf5 {[%clk 0:00:34.4]} 39... Nd8 {[%clk 0:00:20.9]} 40. Bxd4
{[%clk 0:00:34.7]} 40... Nf7 {[%clk 0:00:18.7]} 41. f6 {[%clk 0:00:34.2]} 41...
Rc2 {[%clk 0:00:17.9]} 42. Re7+ {[%clk 0:00:35]} 1-0

[Event "*** Titled Tuesday Blitz"]
[Site "Chess.com"]
[Date "2018.11.06"]
[Round "2"]
[White "Paparama_1917"]
[Black "Pudor"]
[Result "1-0"]
[WhiteElo "2576"]
[BlackElo "2301"]
[TimeControl "180+2"]
[EndTime "13:21:24 PST"]
[Termination "Paparama_1917 won by resignation"]

1. e4 {[%clk 0:02:59]} 1... c5 {[%clk 0:03:00.3]} 2. f4 {[%clk 0:02:57.3]} 2...
d5 {[%clk 0:02:56]} 3. exd5 {[%clk 0:02:53]} 3... Nf6 {[%clk 0:02:56.5]} 4. Bb5+
{[%clk 0:02:52.7]} 4... Bd7 {[%clk 0:02:55.1]} 5. Bxd7+ {[%clk 0:02:51.6]} 5...
Qxd7 {[%clk 0:02:56]} 6. Nc3 {[%clk 0:02:52]} 6... Nxd5 {[%clk 0:02:56.5]} 7.
Nxd5 {[%clk 0:02:51.3]} 7... Qxd5 {[%clk 0:02:57.2]} 8. Qf3 {[%clk 0:02:51.1]}
8... Qxf3 {[%clk 0:02:55.7]} 9. Nxf3 {[%clk 0:02:52.7]} 9... Nc6 {[%clk
0:02:57.6]} 10. d3 {[%clk 0:02:52.4]} 10... e6 {[%clk 0:02:58.6]} 11. Be3 {[%clk
0:02:51.8]} 11... Be7 {[%clk 0:02:58.6]} 12. Kf2 {[%clk 0:02:50.3]} 12... O-O
{[%clk 0:02:58.9]} 13. c3 {[%clk 0:02:48.7]} 13... Rab8 {[%clk 0:02:55.3]} 14.
Rad1 {[%clk 0:02:46.5]} 14... b5 {[%clk 0:02:52.8]} 15. d4 {[%clk 0:02:42.8]}
15... cxd4 {[%clk 0:02:33.2]} 16. Nxd4 {[%clk 0:02:41.8]} 16... Nxd4 {[%clk
0:02:34.3]} 17. Rxd4 {[%clk 0:02:41.2]} 17... Bf6 {[%clk 0:02:29.4]} 18. Rd7
{[%clk 0:02:41]} 18... b4 {[%clk 0:02:25.9]} 19. cxb4 {[%clk 0:02:41.1]} 19...
Rxb4 {[%clk 0:02:18.5]} 20. b3 {[%clk 0:02:41.3]} 20... Rc8 {[%clk 0:02:15.7]}
21. Rhd1 {[%clk 0:02:33.8]} 21... a5 {[%clk 0:02:01.2]} 22. Ra7 {[%clk
0:02:25.2]} 22... a4 {[%clk 0:01:51.5]} 23. Rxa4 {[%clk 0:02:24]} 23... Rxa4
{[%clk 0:01:52]} 24. bxa4 {[%clk 0:02:24.4]} 24... Ra8 {[%clk 0:01:50.5]} 25.
Rc1 {[%clk 0:02:15.5]} 25... h5 {[%clk 0:01:46.9]} 26. Rc4 {[%clk 0:02:15.1]}
26... Ra6 {[%clk 0:01:41.5]} 27. Ke2 {[%clk 0:02:11.8]} 27... Kh7 {[%clk
0:01:37.2]} 28. Kd3 {[%clk 0:02:09.9]} 28... Kg6 {[%clk 0:01:36.6]} 29. Ke4
{[%clk 0:01:58.3]} 29... Bd8 {[%clk 0:01:30.3]} 30. h3 {[%clk 0:01:53.3]} 30...
h4 {[%clk 0:01:27.5]} 31. Bf2 {[%clk 0:01:52.2]} 31... Be7 {[%clk 0:01:25.6]}
32. Be1 {[%clk 0:01:49.9]} 32... Bd8 {[%clk 0:01:25.8]} 33. a5 {[%clk
0:01:47.2]} 33... Rd6 {[%clk 0:01:10.4]} 34. Bc3 {[%clk 0:01:42.4]} 34... f5+
{[%clk 0:01:00.3]} 35. Ke3 {[%clk 0:01:38.7]} 35... Ra6 {[%clk 0:00:54.9]} 36.
Ra4 {[%clk 0:01:37.7]} 36... Bc7 {[%clk 0:00:50.2]} 37. Kd3 {[%clk 0:01:17]}
37... Rd6+ {[%clk 0:00:30.3]} 38. Kc2 {[%clk 0:01:12.7]} 38... Ra6 {[%clk
0:00:29.3]} 39. Kb3 {[%clk 0:01:08.9]} 39... Kf7 {[%clk 0:00:28.3]} 40. Be5
{[%clk 0:01:03.3]} 40... Bd8 {[%clk 0:00:15.9]} 41. Kb4 {[%clk 0:01:01.5]} 1-0

[Event "*** Titled Tuesday Blitz"]
[Site "Chess.com"]
[Date "2018.11.06"]
[Round "2"]
[White "Lovkov_Roman"]
[Black "Firouzja2003"]
[Result "0-1"]
[WhiteElo "2601"]
[BlackElo "2952"]
[TimeControl "180+2"]
[EndTime "13:21:28 PST"]
[Termination "Firouzja2003 won by resignation"]

1. d4 {[%clk 0:03:01.9]} 1... Nf6 {[%clk 0:02:59.8]} 2. c4 {[%clk 0:03:02.6]}
2... e6 {[%clk 0:02:58.4]} 3. g3 {[%clk 0:03:03.1]} 3... d5 {[%clk 0:02:59.4]}
4. Nf3 {[%clk 0:03:03.4]} 4... dxc4 {[%clk 0:02:59.4]} 5. Bg2 {[%clk 0:03:01.4]}
5... Bb4+ {[%clk 0:03:00.8]} 6. Bd2 {[%clk 0:03:01.4]} 6... a5 {[%clk
0:03:02.2]} 7. O-O {[%clk 0:02:59.7]} 7... O-O {[%clk 0:03:01.8]} 8. Na3 {[%clk
0:02:53.6]} 8... Bxa3 {[%clk 0:02:45.4]} 9. bxa3 {[%clk 0:02:54.3]} 9... c6
{[%clk 0:02:36]} 10. a4 {[%clk 0:02:53.9]} 10... b5 {[%clk 0:02:32.2]} 11. Qc2
{[%clk 0:02:32.1]} 11... Ba6 {[%clk 0:02:17.2]} 12. Bg5 {[%clk 0:02:21.2]} 12...
h6 {[%clk 0:01:56.5]} 13. Bxf6 {[%clk 0:02:07.4]} 13... Qxf6 {[%clk 0:01:58.4]}
14. Ne5 {[%clk 0:02:09.1]} 14... Ra7 {[%clk 0:01:49.8]} 15. Rfc1 {[%clk
0:01:40.9]} 15... Rd8 {[%clk 0:01:38]} 16. e3 {[%clk 0:01:34.6]} 16... Qe7
{[%clk 0:01:33.7]} 17. Bxc6 {[%clk 0:01:21.9]} 17... b4 {[%clk 0:01:31.6]} 18.
Bg2 {[%clk 0:01:16.5]} 18... c3 {[%clk 0:01:31.5]} 19. a3 {[%clk 0:01:17.1]}
19... Bb7 {[%clk 0:01:28.7]} 20. axb4 {[%clk 0:00:57.9]} 20... axb4 {[%clk
0:01:26.3]} 21. Qb3 {[%clk 0:00:54.7]} 21... Bxg2 {[%clk 0:01:13.1]} 22. Kxg2
{[%clk 0:00:55.5]} 22... Qb7+ {[%clk 0:00:59.9]} 23. Kg1 {[%clk 0:00:56.3]}
23... Na6 {[%clk 0:00:55]} 24. Rab1 {[%clk 0:00:56.5]} 24... Rb8 {[%clk
0:00:51.6]} 25. Qc4 {[%clk 0:00:53.8]} 25... Qc7 {[%clk 0:00:48.6]} 26. Qd3
{[%clk 0:00:45.9]} 26... Rd8 {[%clk 0:00:40]} 27. Qe4 {[%clk 0:00:45.3]} 27...
Rb7 {[%clk 0:00:38.9]} 28. Rb3 {[%clk 0:00:27.8]} 28... Rd5 {[%clk 0:00:34.1]}
29. Qf3 {[%clk 0:00:22.7]} 29... Rxe5 {[%clk 0:00:26.7]} 30. dxe5 {[%clk
0:00:22.6]} 30... Nc5 {[%clk 0:00:26.2]} 31. Rbxc3 {[%clk 0:00:20]} 31... bxc3
{[%clk 0:00:27.2]} 32. Rxc3 {[%clk 0:00:21.9]} 32... Qxe5 {[%clk 0:00:23.9]} 33.
Rc1 {[%clk 0:00:21.7]} 33... Qe4 {[%clk 0:00:18.4]} 34. Qxe4 {[%clk 0:00:19.6]}
34... Nxe4 {[%clk 0:00:20.3]} 35. a5 {[%clk 0:00:19.6]} 35... Ra7 {[%clk
0:00:20.9]} 36. Rc4 {[%clk 0:00:18.3]} 36... Nd6 {[%clk 0:00:21.6]} 37. Rc6
{[%clk 0:00:19.2]} 37... Nb5 {[%clk 0:00:20.9]} 38. a6 {[%clk 0:00:20.3]} 38...
Nc7 {[%clk 0:00:21.8]} 39. Rc4 {[%clk 0:00:18.5]} 39... Nxa6 {[%clk 0:00:23]}
40. Ra4 {[%clk 0:00:19.8]} 40... Ra8 {[%clk 0:00:24.5]} 41. h4 {[%clk
0:00:21.2]} 41... Nc7 {[%clk 0:00:25.6]} 42. Rc4 {[%clk 0:00:23.1]} 42... Ne8
{[%clk 0:00:26.9]} 43. Kg2 {[%clk 0:00:24]} 43... Nf6 {[%clk 0:00:28.2]} 44. Kf3
{[%clk 0:00:25.3]} 44... g5 {[%clk 0:00:29.4]} 45. hxg5 {[%clk 0:00:26.2]} 45...
hxg5 {[%clk 0:00:31.3]} 46. g4 {[%clk 0:00:28]} 46... Kg7 {[%clk 0:00:32.5]} 47.
Rc5 {[%clk 0:00:29.3]} 47... Kg6 {[%clk 0:00:33.8]} 48. Rb5 {[%clk 0:00:30.9]}
48... Ra4 {[%clk 0:00:34.7]} 0-1

[Event "*** Titled Tuesday Blitz"]
[Site "Chess.com"]
[Date "2018.11.06"]
[Round "2"]
[White "GasconJR"]
[Black "pedromartinez91"]
[Result "1-0"]
[WhiteElo "2422"]
[BlackElo "2497"]
[TimeControl "180+2"]
[EndTime "13:21:29 PST"]
[Termination "GasconJR won by resignation"]

1. e4 {[%clk 0:03:01.9]} 1... c5 {[%clk 0:03:00.7]} 2. Nf3 {[%clk 0:02:58.2]}
2... Nc6 {[%clk 0:03:01.9]} 3. d4 {[%clk 0:02:59.2]} 3... cxd4 {[%clk
0:03:03.2]} 4. Nxd4 {[%clk 0:03:00.8]} 4... g6 {[%clk 0:03:04.3]} 5. c4 {[%clk
0:03:01.3]} 5... Qa5+ {[%clk 0:03:03.5]} 6. Nc3 {[%clk 0:02:44.4]} 6... Nf6
{[%clk 0:03:04.3]} 7. Nb3 {[%clk 0:02:42.1]} 7... Qd8 {[%clk 0:03:04.9]} 8. Be2
{[%clk 0:02:41.9]} 8... Bg7 {[%clk 0:03:05.9]} 9. O-O {[%clk 0:02:43.5]} 9... a5
{[%clk 0:03:06.5]} 10. c5 {[%clk 0:02:36]} 10... a4 {[%clk 0:02:54]} 11. Nd2
{[%clk 0:02:37]} 11... a3 {[%clk 0:02:53.1]} 12. Nc4 {[%clk 0:02:33.1]} 12...
axb2 {[%clk 0:02:45.5]} 13. Bxb2 {[%clk 0:02:35]} 13... O-O {[%clk 0:02:43.7]}
14. e5 {[%clk 0:02:14.9]} 14... Ne8 {[%clk 0:02:34.7]} 15. Nd5 {[%clk 0:02:15]}
15... Nc7 {[%clk 0:02:26.4]} 16. Ndb6 {[%clk 0:02:13.9]} 16... Rb8 {[%clk
0:02:26.4]} 17. f4 {[%clk 0:02:11.7]} 17... Na6 {[%clk 0:02:10.5]} 18. Ba3
{[%clk 0:01:50.7]} 18... Nc7 {[%clk 0:01:58.4]} 19. Rb1 {[%clk 0:01:50.4]} 19...
Ne6 {[%clk 0:01:39.6]} 20. Rf2 {[%clk 0:01:32.1]} 20... Ned4 {[%clk 0:01:38.2]}
21. Bf1 {[%clk 0:01:32.7]} 21... d5 {[%clk 0:01:30.5]} 22. cxd6 {[%clk
0:01:32.4]} 22... Bf5 {[%clk 0:01:26.2]} 23. Bd3 {[%clk 0:01:25.9]} 23... Be6
{[%clk 0:00:59.7]} 24. Be4 {[%clk 0:01:15.2]} 24... Bxc4 {[%clk 0:00:52.9]} 25.
Nxc4 {[%clk 0:01:14.9]} 25... Ra8 {[%clk 0:00:38.2]} 26. dxe7 {[%clk 0:00:44.9]}
26... Nxe7 {[%clk 0:00:40.1]} 27. Bxe7 {[%clk 0:00:45.2]} 27... Qxe7 {[%clk
0:00:36.5]} 28. Qxd4 {[%clk 0:00:44.9]} 28... Rfd8 {[%clk 0:00:35]} 29. Nd6
{[%clk 0:00:42.6]} 29... Ra6 {[%clk 0:00:35.3]} 30. Qc4 {[%clk 0:00:35]} 30...
Raxd6 {[%clk 0:00:11.5]} 31. exd6 {[%clk 0:00:33.8]} 31... Qxd6 {[%clk
0:00:12.8]} 32. Rff1 {[%clk 0:00:25.2]} 32... Bd4+ {[%clk 0:00:06.8]} 33. Kh1
{[%clk 0:00:25.5]} 33... Qf6 {[%clk 0:00:08.7]} 34. Bd5 {[%clk 0:00:22.1]} 34...
Kg7 {[%clk 0:00:08.3]} 35. Rxb7 {[%clk 0:00:21.5]} 35... Kh6 {[%clk 0:00:03.7]}
36. Rxf7 {[%clk 0:00:21.2]} 36... Qh8 {[%clk 0:00:04.9]} 37. f5 {[%clk
0:00:19.7]} 37... g5 {[%clk 0:00:05.1]} 38. f6 {[%clk 0:00:20.1]} 38... Be3
{[%clk 0:00:05.3]} 39. Be4 {[%clk 0:00:19.6]} 39... Rd1 {[%clk 0:00:03.3]} 40.
Rxd1 {[%clk 0:00:18.8]} 1-0

[Event "*** Titled Tuesday Blitz"]
[Site "Chess.com"]
[Date "2018.11.06"]
[Round "2"]
[White "Iyael"]
[Black "tomozupan"]
[Result "0-1"]
[WhiteElo "2012"]
[BlackElo "2167"]
[TimeControl "180+2"]
[EndTime "13:21:38 PST"]
[Termination "tomozupan won by resignation"]

1. e4 {[%clk 0:03:00.1]} 1... e5 {[%clk 0:02:59.1]} 2. Nf3 {[%clk 0:02:59.3]}
2... Nc6 {[%clk 0:02:59.2]} 3. Bc4 {[%clk 0:02:59.4]} 3... Bc5 {[%clk 0:02:59]}
4. b4 {[%clk 0:02:59.5]} 4... Bxb4 {[%clk 0:02:59.4]} 5. c3 {[%clk 0:03:00]}
5... Ba5 {[%clk 0:03:00.4]} 6. d4 {[%clk 0:03:00.5]} 6... exd4 {[%clk
0:02:59.6]} 7. O-O {[%clk 0:03:01.2]} 7... d6 {[%clk 0:02:57.9]} 8. cxd4 {[%clk
0:02:58.9]} 8... Bg4 {[%clk 0:02:39.9]} 9. Be3 {[%clk 0:02:55.5]} 9... Bb6
{[%clk 0:02:13.6]} 10. Be2 {[%clk 0:02:27.1]} 10... Qf6 {[%clk 0:02:03.4]} 11.
d5 {[%clk 0:02:05.9]} 11... Qxa1 {[%clk 0:01:42.5]} 12. dxc6 {[%clk 0:02:06.2]}
12... Ne7 {[%clk 0:01:32]} 13. cxb7 {[%clk 0:02:03.7]} 13... Rb8 {[%clk
0:01:32.7]} 14. Qa4+ {[%clk 0:01:54.5]} 14... Bd7 {[%clk 0:01:30.7]} 15. Qa3
{[%clk 0:01:49.3]} 15... Qf6 {[%clk 0:01:14.9]} 16. e5 {[%clk 0:01:44.7]} 16...
dxe5 {[%clk 0:01:11.5]} 17. Bxb6 {[%clk 0:01:32.4]} 17... axb6 {[%clk
0:01:11.2]} 18. Qc3 {[%clk 0:01:20.1]} 18... O-O {[%clk 0:01:03.8]} 19. Qxe5
{[%clk 0:01:16.4]} 19... Qxe5 {[%clk 0:00:59]} 20. Nxe5 {[%clk 0:01:17.1]} 20...
Be6 {[%clk 0:00:59.9]} 21. Bf3 {[%clk 0:01:16]} 21... Rfd8 {[%clk 0:00:57]} 22.
Nc3 {[%clk 0:01:15.4]} 22... f6 {[%clk 0:00:48.7]} 23. Nc6 {[%clk 0:01:08.7]}
23... Nxc6 {[%clk 0:00:46.9]} 24. Bxc6 {[%clk 0:01:10.2]} 24... Rd6 {[%clk
0:00:43.7]} 25. Bf3 {[%clk 0:01:10.8]} 25... c6 {[%clk 0:00:42.7]} 26. Ne4
{[%clk 0:01:09.6]} 26... Rd4 {[%clk 0:00:43.2]} 27. Nc3 {[%clk 0:01:04.6]} 27...
Bd5 {[%clk 0:00:42.2]} 28. Nxd5 {[%clk 0:01:04.7]} 28... cxd5 {[%clk 0:00:43]}
29. Rc1 {[%clk 0:01:05.2]} 29... Rxb7 {[%clk 0:00:43.8]} 30. h3 {[%clk
0:01:04.5]} 30... Kf7 {[%clk 0:00:43.8]} 31. Rc6 {[%clk 0:01:03.9]} 31... b5
{[%clk 0:00:43.8]} 32. Rd6 {[%clk 0:01:04]} 32... Ke7 {[%clk 0:00:43.9]} 33. Rc6
{[%clk 0:01:03.3]} 33... b4 {[%clk 0:00:43.6]} 34. Bg4 {[%clk 0:01:00.9]} 34...
Rd2 {[%clk 0:00:43.5]} 35. Re6+ {[%clk 0:00:59.1]} 35... Kf7 {[%clk 0:00:43.7]}
36. Ra6 {[%clk 0:00:59.2]} 36... g6 {[%clk 0:00:39.8]} 37. Be6+ {[%clk
0:00:55.7]} 37... Ke7 {[%clk 0:00:39.5]} 38. g4 {[%clk 0:00:54.7]} 38... Rc7
{[%clk 0:00:39.3]} 39. Bg8 {[%clk 0:00:54.2]} 39... Rc1+ {[%clk 0:00:39.5]} 40.
Kg2 {[%clk 0:00:54.8]} 40... Rcc2 {[%clk 0:00:40.5]} 41. Ra7+ {[%clk 0:00:51.8]}
41... Kd6 {[%clk 0:00:41]} 42. Bxh7 {[%clk 0:00:50.6]} 42... Rxf2+ {[%clk
0:00:40.9]} 43. Kg3 {[%clk 0:00:51.5]} 43... g5 {[%clk 0:00:41.3]} 44. Ra6+
{[%clk 0:00:49.8]} 44... Ke5 {[%clk 0:00:41.8]} 45. Bxc2 {[%clk 0:00:51.3]}
45... Rxc2 {[%clk 0:00:41.9]} 46. Rb6 {[%clk 0:00:49.8]} 46... Rb2 {[%clk
0:00:41.5]} 47. Rb5 {[%clk 0:00:48.9]} 47... Ke4 {[%clk 0:00:42.5]} 48. Rb6
{[%clk 0:00:48.6]} 48... d4 {[%clk 0:00:43.2]} 49. Rxf6 {[%clk 0:00:46.1]} 49...
Rxa2 {[%clk 0:00:44]} 50. Rb6 {[%clk 0:00:46.7]} 50... Rb2 {[%clk 0:00:45]} 51.
Rb5 {[%clk 0:00:44.7]} 51... d3 {[%clk 0:00:45.3]} 52. Rb8 {[%clk 0:00:42]}
52... d2 {[%clk 0:00:46.2]} 53. Rd8 {[%clk 0:00:43]} 53... Ke3 {[%clk
0:00:46.2]} 54. Re8+ {[%clk 0:00:43.3]} 54... Kd3 {[%clk 0:00:47.3]} 55. Rd8+
{[%clk 0:00:44.4]} 55... Ke2 {[%clk 0:00:48.3]} 56. Re8+ {[%clk 0:00:44.8]}
56... Kd1 {[%clk 0:00:48.6]} 57. Kf2 {[%clk 0:00:45.7]} 57... Kc1 {[%clk
0:00:48.9]} 0-1

[Event "*** Titled Tuesday Blitz"]
[Site "Chess.com"]
[Date "2018.11.06"]
[Round "2"]
[White "sergeikim"]
[Black "dhanushbharadwaj"]
[Result "0-1"]
[WhiteElo "2484"]
[BlackElo "2482"]
[TimeControl "180+2"]
[EndTime "13:21:43 PST"]
[Termination "dhanushbharadwaj won by resignation"]

1. d4 {[%clk 0:03:01.9]} 1... Nf6 {[%clk 0:02:59.8]} 2. c4 {[%clk 0:03:02.6]}
2... g6 {[%clk 0:03:00.2]} 3. Nc3 {[%clk 0:03:03.4]} 3... Bg7 {[%clk 0:03:01.1]}
4. e4 {[%clk 0:03:04.3]} 4... d6 {[%clk 0:03:02.2]} 5. Nge2 {[%clk 0:03:05.3]}
5... O-O {[%clk 0:03:03.1]} 6. Ng3 {[%clk 0:03:06]} 6... c5 {[%clk 0:03:02.9]}
7. d5 {[%clk 0:03:06.8]} 7... a6 {[%clk 0:03:03.9]} 8. a4 {[%clk 0:03:06.3]}
8... e6 {[%clk 0:03:04.9]} 9. Be2 {[%clk 0:03:07.3]} 9... exd5 {[%clk
0:03:05.5]} 10. cxd5 {[%clk 0:03:08.2]} 10... Nbd7 {[%clk 0:03:06]} 11. O-O
{[%clk 0:03:09]} 11... Re8 {[%clk 0:03:06.9]} 12. Bf4 {[%clk 0:03:09.6]} 12...
Ne5 {[%clk 0:03:06.6]} 13. Qd2 {[%clk 0:03:10.5]} 13... Rb8 {[%clk 0:03:02.1]}
14. h3 {[%clk 0:03:05.8]} 14... Bd7 {[%clk 0:03:00.9]} 15. Bh6 {[%clk
0:03:06.2]} 15... b5 {[%clk 0:03:00]} 16. Bxg7 {[%clk 0:03:01.3]} 16... Kxg7
{[%clk 0:03:00.2]} 17. axb5 {[%clk 0:02:53.7]} 17... axb5 {[%clk 0:03:02.1]} 18.
Ra7 {[%clk 0:02:52.6]} 18... Qb6 {[%clk 0:02:57.5]} 19. Rfa1 {[%clk 0:02:48.9]}
19... b4 {[%clk 0:02:58.2]} 20. Nd1 {[%clk 0:02:49.8]} 20... Bb5 {[%clk
0:02:58.4]} 21. Bxb5 {[%clk 0:02:36.4]} 21... Qxb5 {[%clk 0:03:00.3]} 22. Qg5
{[%clk 0:02:36.7]} 22... Ned7 {[%clk 0:01:37.8]} 23. Nf5+ {[%clk 0:02:31.5]}
23... Kh8 {[%clk 0:01:39.2]} 24. Nxd6 {[%clk 0:02:31.8]} 24... Qe2 {[%clk
0:01:36.7]} 25. Ne3 {[%clk 0:02:15]} 25... Kg8 {[%clk 0:01:05.3]} 26. Nxe8
{[%clk 0:01:57.4]} 26... Rxe8 {[%clk 0:01:07.2]} 27. Ra8 {[%clk 0:01:56]} 27...
Qxb2 {[%clk 0:00:43.9]} 28. Nc4 {[%clk 0:01:30.2]} 28... Qc3 {[%clk 0:00:24.7]}
29. Nd6 {[%clk 0:01:25.6]} 29... Rf8 {[%clk 0:00:19.8]} 30. Rxf8+ {[%clk
0:00:43.6]} 30... Nxf8 {[%clk 0:00:21.7]} 31. Ra8 {[%clk 0:00:42]} 31... b3
{[%clk 0:00:17.3]} 32. Qh6 {[%clk 0:00:23.4]} 32... Nd7 {[%clk 0:00:16.3]} 33.
Nf5 {[%clk 0:00:17.7]} 33... gxf5 {[%clk 0:00:16.2]} 34. Qg5+ {[%clk 0:00:17.7]}
34... Qg7 {[%clk 0:00:17]} 35. Qc1 {[%clk 0:00:16.6]} 35... b2 {[%clk
0:00:18.2]} 36. Qc2 {[%clk 0:00:17]} 36... Qd4 {[%clk 0:00:18.1]} 37. exf5
{[%clk 0:00:14.6]} 37... c4 {[%clk 0:00:18]} 38. Ra7 {[%clk 0:00:13.4]} 38... c3
{[%clk 0:00:18.9]} 39. Rb7 {[%clk 0:00:13.6]} 39... Qd2 {[%clk 0:00:19.4]} 40.
Qe4 {[%clk 0:00:14.2]} 40... c2 {[%clk 0:00:16.8]} 41. Qg4+ {[%clk 0:00:14.7]}
41... Kh8 {[%clk 0:00:17.5]} 42. f6 {[%clk 0:00:15.2]} 42... c1=Q+ {[%clk
0:00:18.6]} 43. Kh2 {[%clk 0:00:16.7]} 43... Qf4+ {[%clk 0:00:20.1]} 44. Qxf4
{[%clk 0:00:17]} 44... Qxf4+ {[%clk 0:00:22]} 45. g3 {[%clk 0:00:18.4]} 45...
Qxf2+ {[%clk 0:00:22.8]} 46. Kh1 {[%clk 0:00:19.5]} 46... Qe1+ {[%clk 0:00:24]}
0-1